[Event "Titled Tuesday Blitz January 10 Early 2023"]
[White "Broca Jimenez, Fernando"]
[Black "Clawitter, Craig"]
[WhiteFideId "5104742"]
[BlackFideId "2023105"]
[WhiteElo "2075"]
[BlackElo "2050"]
[Result "0-1"]
[Round "10"]
[TimeControl "180+2"]
[Date "2023.01.10"]
[WhiteClock "0:00:33"]
[BlackClock "0:00:11"]

1. e4 {[%clk 0:03:00]}  e6 {[%clk 0:03:00]} 2. d4 {[%clk 0:02:58]}  d5 {[%clk 0:03:00]} 3. exd5 {[%clk 0:02:59]}  exd5 {[%clk 0:02:59]} 4. Bd3 {[%clk 0:03:00]}  Bd6 {[%clk 0:02:59]} 5. Ne2 {[%clk 0:03:00]}  Nc6 {[%clk 0:02:58]} 6. c3 {[%clk 0:03:00]}  Qh4 {[%clk 0:02:57]} 7. g3 {[%clk 0:02:56]}  Qh5 {[%clk 0:02:54]} 8. Bf4 {[%clk 0:02:55]}  Bxf4 {[%clk 0:02:46]} 9. Nxf4 {[%clk 0:02:55]}  Qxd1+ {[%clk 0:02:46]} 10. Kxd1 {[%clk 0:02:55]}  Nf6 {[%clk 0:02:47]} 11. Nd2 {[%clk 0:02:52]}  Ne7 {[%clk 0:02:20]} 12. f3 {[%clk 0:02:47]}  Bf5 {[%clk 0:02:17]} 13. Kc2 {[%clk 0:02:44]}  O-O-O {[%clk 0:02:02]} 14. Rhe1 {[%clk 0:02:42]}  Rhe8 {[%clk 0:01:58]} 15. Re5 {[%clk 0:02:29]}  Bxd3+ {[%clk 0:01:49]} 16. Nxd3 {[%clk 0:02:24]}  Ng6 {[%clk 0:01:45]} 17. Rxe8 {[%clk 0:02:23]}  Rxe8 {[%clk 0:01:46]} 18. Re1 {[%clk 0:02:22]}  Rxe1 {[%clk 0:01:45]} 19. Nxe1 {[%clk 0:02:23]}  c6 {[%clk 0:01:38]} 20. Nd3 {[%clk 0:02:20]}  b6 {[%clk 0:01:36]} 21. Nf1 {[%clk 0:02:18]}  Kd7 {[%clk 0:01:34]} 22. Ne3 {[%clk 0:02:18]}  Ne7 {[%clk 0:01:16]} 23. Ne5+ {[%clk 0:01:57]}  Ke6 {[%clk 0:01:15]} 24. Kd3 {[%clk 0:01:54]}  Ne8 {[%clk 0:01:03]} 25. Ng2 {[%clk 0:01:45]}  g5 {[%clk 0:00:46]} 26. h4 {[%clk 0:01:41]}  h6 {[%clk 0:00:43]} 27. h5 {[%clk 0:01:31]}  f6 {[%clk 0:00:39]} 28. Ng4 {[%clk 0:01:30]}  Nf5 {[%clk 0:00:32]} 29. N2e3 {[%clk 0:01:25]}  Neg7 {[%clk 0:00:29]} 30. a4 {[%clk 0:01:11]}  Nxg3 {[%clk 0:00:18]} 31. Nxh6 {[%clk 0:01:11]}  N7xh5 {[%clk 0:00:13]} 32. Nhg4 {[%clk 0:01:10]}  Nf4+ {[%clk 0:00:12]} 33. Kc2 {[%clk 0:01:09]}  Nf5 {[%clk 0:00:12]} 34. b4 {[%clk 0:01:03]}  Nxe3+ {[%clk 0:00:11]} 35. Nxe3 {[%clk 0:01:03]}  f5 {[%clk 0:00:09]} 36. Kd2 {[%clk 0:01:03]}  Ng6 {[%clk 0:00:08]} 37. Ng2 {[%clk 0:01:02]}  Nh4 {[%clk 0:00:07]} 38. Ne1 {[%clk 0:00:52]}  f4 {[%clk 0:00:06]} 39. Ke2 {[%clk 0:00:50]}  Kf5 {[%clk 0:00:06]} 40. Nd3 {[%clk 0:00:47]}  g4 {[%clk 0:00:05]} 41. Ne5 {[%clk 0:00:46]}  Nxf3 {[%clk 0:00:03]} 42. Nxf3 {[%clk 0:00:45]}  gxf3+ {[%clk 0:00:03]} 43. Kxf3 {[%clk 0:00:46]}  Kg5 {[%clk 0:00:03]} 44. a5 {[%clk 0:00:42]}  bxa5 {[%clk 0:00:03]} 45. bxa5 {[%clk 0:00:42]}  a6 {[%clk 0:00:03]} 46. Kf2 {[%clk 0:00:37]}  Kg4 {[%clk 0:00:04]} 47. Kg2 {[%clk 0:00:38]}  f3+ {[%clk 0:00:04]} 48. Kf2 {[%clk 0:00:39]}  Kf4 {[%clk 0:00:04]} 49. Kf1 {[%clk 0:00:39]}  Ke3 {[%clk 0:00:05]} 50. Ke1 {[%clk 0:00:39]}  Kd3 {[%clk 0:00:05]} 51. Kf2 {[%clk 0:00:40]}  Kxc3 {[%clk 0:00:05]} 52. Kxf3 {[%clk 0:00:41]}  Kxd4 {[%clk 0:00:05]} 53. Ke2 {[%clk 0:00:41]}  Kc4 {[%clk 0:00:06]} 54. Kd2 {[%clk 0:00:42]}  d4 {[%clk 0:00:06]} 55. Kc1 {[%clk 0:00:42]}  d3 {[%clk 0:00:06]} 56. Kd2 {[%clk 0:00:42]}  Kd4 {[%clk 0:00:07]} 57. Kd1 {[%clk 0:00:43]}  Kc3 {[%clk 0:00:07]} 58. Kc1 {[%clk 0:00:44]}  c5 {[%clk 0:00:07]} 59. Kd1 {[%clk 0:00:45]}  d2 {[%clk 0:00:07]} 60. Ke2 {[%clk 0:00:45]}  Kc2 {[%clk 0:00:07]} 61. Ke3 {[%clk 0:00:44]}  d1=Q {[%clk 0:00:07]} 62. Ke4 {[%clk 0:00:45]}  Qd4+ {[%clk 0:00:07]} 63. Kf5 {[%clk 0:00:31]}  c4 {[%clk 0:00:07]} 64. Ke6 {[%clk 0:00:32]}  c3 {[%clk 0:00:07]} 65. Kf5 {[%clk 0:00:26]}  Qb4 {[%clk 0:00:07]} 66. Ke6 {[%clk 0:00:27]}  Qxa5 {[%clk 0:00:07]} 67. Kf6 {[%clk 0:00:26]}  Qb4 {[%clk 0:00:07]} 68. Ke6 {[%clk 0:00:27]}  a5 {[%clk 0:00:08]} 69. Kf6 {[%clk 0:00:28]}  a4 {[%clk 0:00:08]} 70. Ke6 {[%clk 0:00:29]}  a3 {[%clk 0:00:09]} 71. Kf6 {[%clk 0:00:30]}  a2 {[%clk 0:00:09]} 72. Ke6 {[%clk 0:00:31]}  a1=Q {[%clk 0:00:10]} 73. Kf6 {[%clk 0:00:32]}  Qaa5 {[%clk 0:00:10]} 74. Ke6 {[%clk 0:00:33]}  Qbb6+ {[%clk 0:00:10]} 75. Ke7 {[%clk 0:00:32]}  Qaa7+ {[%clk 0:00:11]} 76. Kf8 {[%clk 0:00:33]}  Qbb8# {[%clk 0:00:11]} 0-1


[Site "https://www.chess.com"]

[Event "Titled Tuesday Blitz January 10 Early 2023"]
[White "Player, Edmund C"]
[Black "Winkels, Marcel"]
[WhiteFideId "406520"]
[BlackFideId "1003887"]
[WhiteElo "2204"]
[BlackElo "1960"]
[Result "1-0"]
[Round "10"]
[TimeControl "180+2"]
[Date "2023.01.10"]
[WhiteClock "0:00:02"]
[BlackClock "0:00:06"]

1. e4 {[%clk 0:03:00]}  c5 {[%clk 0:02:58]} 2. Nf3 {[%clk 0:03:00]}  d6 {[%clk 0:02:58]} 3. d4 {[%clk 0:02:59]}  cxd4 {[%clk 0:02:58]} 4. Nxd4 {[%clk 0:02:59]}  Nf6 {[%clk 0:02:58]} 5. Nc3 {[%clk 0:03:00]}  a6 {[%clk 0:02:59]} 6. h3 {[%clk 0:03:00]}  e5 {[%clk 0:02:58]} 7. Nde2 {[%clk 0:03:00]}  h5 {[%clk 0:02:57]} 8. Bg5 {[%clk 0:03:00]}  Be7 {[%clk 0:02:56]} 9. Qd3 {[%clk 0:02:55]}  Be6 {[%clk 0:02:43]} 10. O-O-O {[%clk 0:02:55]}  Nbd7 {[%clk 0:02:42]} 11. Kb1 {[%clk 0:02:46]}  O-O {[%clk 0:02:38]} 12. Ng3 {[%clk 0:02:37]}  b5 {[%clk 0:02:33]} 13. a3 {[%clk 0:02:31]}  Rb8 {[%clk 0:02:24]} 14. Bxf6 {[%clk 0:02:28]}  Nxf6 {[%clk 0:02:23]} 15. Nd5 {[%clk 0:02:29]}  Bxd5 {[%clk 0:02:15]} 16. exd5 {[%clk 0:02:30]}  a5 {[%clk 0:02:12]} 17. Nf5 {[%clk 0:02:22]}  Nd7 {[%clk 0:02:01]} 18. g4 {[%clk 0:01:59]}  h4 {[%clk 0:01:58]} 19. g5 {[%clk 0:01:24]}  Nc5 {[%clk 0:01:55]} 20. Qf3 {[%clk 0:01:15]}  b4 {[%clk 0:01:49]} 21. a4 {[%clk 0:01:03]}  Nxa4 {[%clk 0:01:44]} 22. Rg1 {[%clk 0:00:50]}  Nc5 {[%clk 0:01:37]} 23. g6 {[%clk 0:00:42]}  fxg6 {[%clk 0:01:22]} 24. Rxg6 {[%clk 0:00:43]}  Qe8 {[%clk 0:01:08]} 25. Qh5 {[%clk 0:00:21]}  Bf6 {[%clk 0:00:50]} 26. Nh6+ {[%clk 0:00:17]}  Kh8 {[%clk 0:00:39]} 27. Nf7+ {[%clk 0:00:09]}  Kg8 {[%clk 0:00:38]} 28. Nxd6 {[%clk 0:00:09]}  Qd7 {[%clk 0:00:30]} 29. Nf5 {[%clk 0:00:08]}  e4 {[%clk 0:00:25]} 30. d6 {[%clk 0:00:06]}  Bxb2 {[%clk 0:00:17]} 31. Bc4+ {[%clk 0:00:05]}  Rf7 {[%clk 0:00:09]} 32. Ne7+ {[%clk 0:00:03]}  Kf8 {[%clk 0:00:06]} 33. Qh8# {[%clk 0:00:02]} 1-0


[Site "https://www.chess.com"]

[Event "Titled Tuesday Blitz January 10 Early 2023"]
[White "Blokhin, Sofia"]
[Black "Muzzi, Eduardo"]
[WhiteFideId "4508190"]
[BlackFideId "3001253"]
[WhiteElo "2062"]
[BlackElo "1917"]
[Result "1-0"]
[Round "10"]
[TimeControl "180+2"]
[Date "2023.01.10"]
[WhiteClock "0:00:11"]
[BlackClock "0:00:02"]

1. d4 {[%clk 0:02:52]}  f5 {[%clk 0:02:59]} 2. c4 {[%clk 0:02:51]}  Nf6 {[%clk 0:02:58]} 3. Nc3 {[%clk 0:02:50]}  g6 {[%clk 0:02:57]} 4. g3 {[%clk 0:02:50]}  Bg7 {[%clk 0:02:54]} 5. Bg2 {[%clk 0:02:51]}  d6 {[%clk 0:02:54]} 6. Nh3 {[%clk 0:02:50]}  O-O {[%clk 0:02:54]} 7. Nf4 {[%clk 0:02:50]}  Qe8 {[%clk 0:02:48]} 8. e3 {[%clk 0:02:50]}  c6 {[%clk 0:02:41]} 9. h4 {[%clk 0:02:47]}  e5 {[%clk 0:02:41]} 10. dxe5 {[%clk 0:02:41]}  dxe5 {[%clk 0:02:41]} 11. Nd3 {[%clk 0:02:42]}  Qe7 {[%clk 0:02:34]} 12. Qc2 {[%clk 0:02:36]}  f4 {[%clk 0:02:31]} 13. gxf4 {[%clk 0:02:30]}  Bf5 {[%clk 0:02:26]} 14. fxe5 {[%clk 0:01:54]}  Nfd7 {[%clk 0:02:15]} 15. e4 {[%clk 0:01:39]}  Nxe5 {[%clk 0:02:07]} 16. Nxe5 {[%clk 0:01:34]}  Qxe5 {[%clk 0:02:07]} 17. Be3 {[%clk 0:01:31]}  Be6 {[%clk 0:02:03]} 18. O-O-O {[%clk 0:01:27]}  Bxc4 {[%clk 0:01:58]} 19. f4 {[%clk 0:01:17]}  Qe6 {[%clk 0:01:53]} 20. b3 {[%clk 0:01:09]}  Na6 {[%clk 0:00:54]} 21. Bh3 {[%clk 0:00:49]}  Qf7 {[%clk 0:00:49]} 22. Rd7 {[%clk 0:00:44]}  Qf6 {[%clk 0:00:13]} 23. e5 {[%clk 0:00:42]}  Qxh4 {[%clk 0:00:13]} 24. Be6+ {[%clk 0:00:37]}  Bxe6 {[%clk 0:00:12]} 25. Rxg7+ {[%clk 0:00:36]}  Kxg7 {[%clk 0:00:11]} 26. Rxh4 {[%clk 0:00:37]}  Rad8 {[%clk 0:00:09]} 27. Qh2 {[%clk 0:00:33]}  h5 {[%clk 0:00:07]} 28. Qg3 {[%clk 0:00:31]}  Rd3 {[%clk 0:00:07]} 29. Ne4 {[%clk 0:00:26]}  Nb4 {[%clk 0:00:06]} 30. Ng5 {[%clk 0:00:21]}  Bf5 {[%clk 0:00:04]} 31. Rxh5 {[%clk 0:00:12]}  Nd5 {[%clk 0:00:03]} 32. Rh7+ {[%clk 0:00:11]}  Kg8 {[%clk 0:00:03]} 33. Rh8+ {[%clk 0:00:11]}  Kxh8 {[%clk 0:00:02]} 34. Qh4+ {[%clk 0:00:11]} 1-0


[Site "https://www.chess.com"]

[Event "Titled Tuesday Blitz January 10 Early 2023"]
[White "Necula, Iulian"]
[Black "Hartikainen, Jarmo"]
[WhiteFideId "1232380"]
[BlackFideId "503134"]
[WhiteElo "1851"]
[BlackElo "2108"]
[Result "0-1"]
[Round "10"]
[TimeControl "180+2"]
[Date "2023.01.10"]
[WhiteClock "0:00:01"]
[BlackClock "0:00:16"]

1. d4 {[%clk 0:03:00]}  Nf6 {[%clk 0:02:59]} 2. Nc3 {[%clk 0:03:00]}  e6 {[%clk 0:02:58]} 3. Bf4 {[%clk 0:02:58]}  d5 {[%clk 0:02:57]} 4. Nb5 {[%clk 0:02:54]}  Na6 {[%clk 0:02:54]} 5. e3 {[%clk 0:02:55]}  c6 {[%clk 0:02:37]} 6. Nc3 {[%clk 0:02:54]}  Qa5 {[%clk 0:02:32]} 7. Bd3 {[%clk 0:02:45]}  Bb4 {[%clk 0:02:29]} 8. Ne2 {[%clk 0:02:44]}  Ne4 {[%clk 0:02:01]} 9. Bxe4 {[%clk 0:02:44]}  dxe4 {[%clk 0:02:01]} 10. O-O {[%clk 0:02:42]}  f5 {[%clk 0:01:58]} 11. a3 {[%clk 0:02:41]}  Be7 {[%clk 0:01:54]} 12. b4 {[%clk 0:02:38]}  Qd8 {[%clk 0:01:54]} 13. f3 {[%clk 0:02:29]}  exf3 {[%clk 0:01:51]} 14. Rxf3 {[%clk 0:02:26]}  O-O {[%clk 0:01:51]} 15. Rh3 {[%clk 0:02:22]}  Bf6 {[%clk 0:01:27]} 16. Ng3 {[%clk 0:02:18]}  g6 {[%clk 0:01:08]} 17. Bh6 {[%clk 0:02:01]}  Rf7 {[%clk 0:01:06]} 18. Nce2 {[%clk 0:01:49]}  Nc7 {[%clk 0:01:03]} 19. Nf4 {[%clk 0:01:46]}  Nd5 {[%clk 0:00:58]} 20. Nfh5 {[%clk 0:01:33]}  gxh5 {[%clk 0:00:53]} 21. Nxh5 {[%clk 0:01:33]}  Bd7 {[%clk 0:00:45]} 22. c4 {[%clk 0:01:32]}  Nc3 {[%clk 0:00:40]} 23. Qf3 {[%clk 0:01:32]}  Ne4 {[%clk 0:00:39]} 24. Rd1 {[%clk 0:01:05]}  Kh8 {[%clk 0:00:36]} 25. d5 {[%clk 0:01:03]}  Qg8 {[%clk 0:00:32]} 26. Nf4 {[%clk 0:00:49]}  exd5 {[%clk 0:00:30]} 27. cxd5 {[%clk 0:00:49]}  cxd5 {[%clk 0:00:29]} 28. Nxd5 {[%clk 0:00:43]}  Ng5 {[%clk 0:00:28]} 29. Bxg5 {[%clk 0:00:42]}  Bxg5 {[%clk 0:00:26]} 30. Rg3 {[%clk 0:00:27]}  Bc6 {[%clk 0:00:26]} 31. Qh5 {[%clk 0:00:20]}  Rg7 {[%clk 0:00:26]} 32. Nc7 {[%clk 0:00:06]}  Rd8 {[%clk 0:00:21]} 33. Ne6 {[%clk 0:00:06]}  Rxd1+ {[%clk 0:00:20]} 34. Kf2 {[%clk 0:00:05]}  Rd2+ {[%clk 0:00:19]} 35. Ke1 {[%clk 0:00:05]}  Qxe6 {[%clk 0:00:18]} 36. Kxd2 {[%clk 0:00:03]}  Qd5+ {[%clk 0:00:17]} 37. Ke2 {[%clk 0:00:03]}  Bb5+ {[%clk 0:00:16]} 38. Kf2 {[%clk 0:00:02]}  Qd2+ {[%clk 0:00:16]} 39. Kf3 {[%clk 0:00:03]}  Qd1+ {[%clk 0:00:16]} 40. Kf2 {[%clk 0:00:01]}  Qxh5 {[%clk 0:00:16]} 0-1


[Site "https://www.chess.com"]

[Event "Titled Tuesday Blitz January 10 Early 2023"]
[White "Dilmukhametov, Artur"]
[Black "Buraczewski, Rafal"]
[WhiteFideId "24179922"]
[BlackFideId "1155245"]
[WhiteElo "2276"]
[BlackElo "2123"]
[Result "0-1"]
[Round "10"]
[TimeControl "180+2"]
[Date "2023.01.10"]
[WhiteClock "0:01:49"]
[BlackClock "0:00:54"]

1. d4 {[%clk 0:03:00]}  e6 {[%clk 0:01:35]} 2. Nc3 {[%clk 0:02:57]}  Nf6 {[%clk 0:01:36]} 3. Nf3 {[%clk 0:02:56]}  d5 {[%clk 0:01:33]} 4. Bf4 {[%clk 0:02:48]}  Be7 {[%clk 0:01:32]} 5. e3 {[%clk 0:02:48]}  O-O {[%clk 0:01:32]} 6. Bd3 {[%clk 0:02:48]}  b6 {[%clk 0:01:29]} 7. O-O {[%clk 0:02:45]}  Bb7 {[%clk 0:01:28]} 8. Ne5 {[%clk 0:02:40]}  a6 {[%clk 0:01:28]} 9. Ne2 {[%clk 0:02:35]}  Nbd7 {[%clk 0:01:27]} 10. c3 {[%clk 0:02:34]}  c5 {[%clk 0:01:26]} 11. b3 {[%clk 0:02:25]}  Rc8 {[%clk 0:01:26]} 12. c4 {[%clk 0:02:18]}  cxd4 {[%clk 0:01:24]} 13. exd4 {[%clk 0:02:16]}  Nxe5 {[%clk 0:01:21]} 14. Bxe5 {[%clk 0:02:15]}  dxc4 {[%clk 0:01:19]} 15. bxc4 {[%clk 0:02:13]}  Bd6 {[%clk 0:01:11]} 16. Bxd6 {[%clk 0:02:10]}  Qxd6 {[%clk 0:01:11]} 17. c5 {[%clk 0:02:09]}  bxc5 {[%clk 0:01:06]} 18. dxc5 {[%clk 0:02:08]}  Qxc5 {[%clk 0:01:05]} 19. Rc1 {[%clk 0:02:07]}  Qd5 {[%clk 0:01:03]} 20. f3 {[%clk 0:01:59]}  Rxc1 {[%clk 0:01:00]} 21. Be4 {[%clk 0:01:50]}  Qxd1 {[%clk 0:00:54]} 22. Rxd1 {[%clk 0:01:49]}  Rxd1+ {[%clk 0:00:55]} 23. Kf2 {[%clk 0:01:49]}  Nxe4+ {[%clk 0:00:54]} 0-1


[Site "https://www.chess.com"]

[Event "Titled Tuesday Blitz January 10 Early 2023"]
[White "Michalski, Olaf"]
[Black "Souza, Gustavo Horokoski De"]
[WhiteFideId "1106740"]
[BlackFideId "2146584"]
[WhiteElo "2273"]
[BlackElo "1943"]
[Result "0-1"]
[Round "10"]
[TimeControl "180+2"]
[Date "2023.01.10"]
[WhiteClock "0:00:13"]
[BlackClock "0:00:26"]

1. d4 {[%clk 0:02:46]}  Nf6 {[%clk 0:02:58]} 2. c4 {[%clk 0:02:45]}  c5 {[%clk 0:02:58]} 3. d5 {[%clk 0:02:45]}  e6 {[%clk 0:02:57]} 4. Nc3 {[%clk 0:02:44]}  exd5 {[%clk 0:02:57]} 5. cxd5 {[%clk 0:02:45]}  d6 {[%clk 0:02:58]} 6. Nf3 {[%clk 0:02:45]}  g6 {[%clk 0:02:57]} 7. Nd2 {[%clk 0:02:46]}  Bg7 {[%clk 0:02:56]} 8. Nc4 {[%clk 0:02:46]}  O-O {[%clk 0:02:48]} 9. Bf4 {[%clk 0:02:45]}  Nbd7 {[%clk 0:02:06]} 10. Nxd6 {[%clk 0:02:37]}  Nh5 {[%clk 0:02:05]} 11. Bd2 {[%clk 0:02:28]}  Ndf6 {[%clk 0:02:00]} 12. Nxc8 {[%clk 0:02:28]}  Rxc8 {[%clk 0:01:57]} 13. g4 {[%clk 0:02:08]}  Nxg4 {[%clk 0:01:48]} 14. Bg2 {[%clk 0:02:08]}  Bxc3 {[%clk 0:01:20]} 15. bxc3 {[%clk 0:01:32]}  Re8 {[%clk 0:01:00]} 16. h3 {[%clk 0:01:18]}  Ngf6 {[%clk 0:00:52]} 17. c4 {[%clk 0:01:13]}  Ne4 {[%clk 0:00:50]} 18. Bf3 {[%clk 0:00:52]}  Qf6 {[%clk 0:00:46]} 19. Be3 {[%clk 0:00:40]}  Nxf2 {[%clk 0:00:30]} 20. Bxf2 {[%clk 0:00:14]}  Qxf3 {[%clk 0:00:28]} 21. e3 {[%clk 0:00:13]}  Qxh1+ {[%clk 0:00:26]} 22. Ke2 {[%clk 0:00:13]} 0-1


[Site "https://www.chess.com"]

[Event "Titled Tuesday Blitz January 10 Early 2023"]
[White "Dubov, Daniil"]
[Black "Nakamura, Hikaru"]
[WhiteFideId "24126055"]
[BlackFideId "2016192"]
[WhiteElo "2708"]
[BlackElo "2775"]
[Result "1-0"]
[Round "11"]
[TimeControl "180+2"]
[Date "2023.01.10"]
[WhiteClock "0:00:09"]
[BlackClock "0:00:02"]

1. d4 {[%clk 0:03:00]}  e6 {[%clk 0:02:58]} 2. Nf3 {[%clk 0:03:00]}  Nf6 {[%clk 0:02:52]} 3. c4 {[%clk 0:03:00]}  Nc6 {[%clk 0:02:51]} 4. g3 {[%clk 0:02:59]}  g6 {[%clk 0:02:51]} 5. Bg2 {[%clk 0:02:59]}  Bg7 {[%clk 0:02:51]} 6. O-O {[%clk 0:02:59]}  O-O {[%clk 0:02:52]} 7. Nc3 {[%clk 0:02:59]}  d5 {[%clk 0:02:48]} 8. Bg5 {[%clk 0:02:54]}  Ne7 {[%clk 0:02:34]} 9. Rc1 {[%clk 0:02:50]}  h6 {[%clk 0:02:32]} 10. Bxf6 {[%clk 0:02:47]}  Bxf6 {[%clk 0:02:32]} 11. e3 {[%clk 0:02:48]}  c6 {[%clk 0:02:29]} 12. Qe2 {[%clk 0:02:43]}  b6 {[%clk 0:02:29]} 13. cxd5 {[%clk 0:02:42]}  cxd5 {[%clk 0:02:26]} 14. Ne5 {[%clk 0:02:42]}  Bb7 {[%clk 0:02:25]} 15. Rc2 {[%clk 0:02:40]}  a6 {[%clk 0:02:20]} 16. Rfc1 {[%clk 0:02:37]}  Rc8 {[%clk 0:02:03]} 17. Nd3 {[%clk 0:02:33]}  Qd6 {[%clk 0:02:01]} 18. h4 {[%clk 0:02:30]}  h5 {[%clk 0:01:59]} 19. a3 {[%clk 0:02:27]}  Nf5 {[%clk 0:01:58]} 20. Nb4 {[%clk 0:02:13]}  Bxd4 {[%clk 0:01:29]} 21. exd4 {[%clk 0:02:09]}  Nxd4 {[%clk 0:01:30]} 22. Qd2 {[%clk 0:02:07]}  Nxc2 {[%clk 0:01:26]} 23. Nxc2 {[%clk 0:02:07]}  Rfd8 {[%clk 0:01:26]} 24. Rd1 {[%clk 0:02:06]}  Qe7 {[%clk 0:01:24]} 25. Qe3 {[%clk 0:01:55]}  Qc5 {[%clk 0:01:22]} 26. Nd4 {[%clk 0:01:53]}  Re8 {[%clk 0:01:22]} 27. f4 {[%clk 0:01:49]}  b5 {[%clk 0:01:19]} 28. Kh2 {[%clk 0:01:48]}  b4 {[%clk 0:01:18]} 29. axb4 {[%clk 0:01:48]}  Qxb4 {[%clk 0:01:18]} 30. Rd2 {[%clk 0:01:48]}  Qb6 {[%clk 0:01:17]} 31. Nce2 {[%clk 0:01:39]}  a5 {[%clk 0:01:16]} 32. Ng1 {[%clk 0:01:34]}  Rc4 {[%clk 0:01:06]} 33. Ngf3 {[%clk 0:01:34]}  Rb4 {[%clk 0:01:00]} 34. f5 {[%clk 0:01:17]}  e5 {[%clk 0:01:01]} 35. fxg6 {[%clk 0:01:13]}  Qxg6 {[%clk 0:00:59]} 36. Rf2 {[%clk 0:00:26]}  f6 {[%clk 0:00:51]} 37. Nc2 {[%clk 0:00:20]}  Rxb2 {[%clk 0:00:31]} 38. Qc3 {[%clk 0:00:20]}  Rb5 {[%clk 0:00:29]} 39. Na3 {[%clk 0:00:19]}  Rb4 {[%clk 0:00:28]} 40. Qc5 {[%clk 0:00:18]}  Rg4 {[%clk 0:00:23]} 41. Nb5 {[%clk 0:00:11]}  e4 {[%clk 0:00:19]} 42. Nd6 {[%clk 0:00:10]}  exf3 {[%clk 0:00:18]} 43. Bxf3 {[%clk 0:00:10]}  Rge4 {[%clk 0:00:05]} 44. Bxe4 {[%clk 0:00:09]}  dxe4 {[%clk 0:00:04]} 45. Nxe8 {[%clk 0:00:09]}  Qxe8 {[%clk 0:00:02]} 46. Rxf6 {[%clk 0:00:09]} 1-0


[Site "https://www.chess.com"]

[Event "Titled Tuesday Blitz January 10 Early 2023"]
[White "Andreikin, Dmitry"]
[Black "Xu, Yi"]
[WhiteFideId "4158814"]
[BlackFideId "8605564"]
[WhiteElo "2729"]
[BlackElo "2527"]
[Result "1-0"]
[Round "11"]
[TimeControl "180+2"]
[Date "2023.01.10"]
[WhiteClock "0:00:50"]
[BlackClock "0:00:06"]

1. Nf3 {[%clk 0:03:00]}  d5 {[%clk 0:02:58]} 2. d4 {[%clk 0:02:57]}  Nf6 {[%clk 0:02:57]} 3. c4 {[%clk 0:02:58]}  e6 {[%clk 0:02:57]} 4. g3 {[%clk 0:02:58]}  Be7 {[%clk 0:02:57]} 5. Bg2 {[%clk 0:02:57]}  O-O {[%clk 0:02:58]} 6. Nbd2 {[%clk 0:02:56]}  b6 {[%clk 0:02:48]} 7. O-O {[%clk 0:02:55]}  Bb7 {[%clk 0:02:47]} 8. cxd5 {[%clk 0:02:56]}  Nxd5 {[%clk 0:02:43]} 9. a3 {[%clk 0:02:49]}  c5 {[%clk 0:02:39]} 10. dxc5 {[%clk 0:02:49]}  Bxc5 {[%clk 0:02:39]} 11. b4 {[%clk 0:02:48]}  Nc3 {[%clk 0:02:20]} 12. Qe1 {[%clk 0:02:47]}  Be7 {[%clk 0:02:18]} 13. Bb2 {[%clk 0:02:42]}  Na4 {[%clk 0:02:05]} 14. Be5 {[%clk 0:02:40]}  Nc6 {[%clk 0:02:00]} 15. Bf4 {[%clk 0:02:29]}  Bf6 {[%clk 0:01:58]} 16. Rc1 {[%clk 0:02:23]}  Nc3 {[%clk 0:01:51]} 17. Bg5 {[%clk 0:02:06]}  Bxg5 {[%clk 0:01:34]} 18. Nxg5 {[%clk 0:02:07]}  Qxg5 {[%clk 0:01:13]} 19. Rxc3 {[%clk 0:02:07]}  Rfc8 {[%clk 0:01:11]} 20. Ne4 {[%clk 0:01:56]}  Qe7 {[%clk 0:01:10]} 21. Qa1 {[%clk 0:01:47]}  a5 {[%clk 0:00:55]} 22. b5 {[%clk 0:01:41]}  Na7 {[%clk 0:00:56]} 23. a4 {[%clk 0:01:36]}  Rxc3 {[%clk 0:00:56]} 24. Qxc3 {[%clk 0:01:34]}  Rc8 {[%clk 0:00:45]} 25. Qd4 {[%clk 0:01:26]}  Bxe4 {[%clk 0:00:45]} 26. Bxe4 {[%clk 0:01:25]}  Qc5 {[%clk 0:00:45]} 27. Qd7 {[%clk 0:01:13]}  Qc7 {[%clk 0:00:43]} 28. Rd1 {[%clk 0:01:12]}  g6 {[%clk 0:00:34]} 29. Bb7 {[%clk 0:01:04]}  Qxd7 {[%clk 0:00:20]} 30. Rxd7 {[%clk 0:01:05]}  Rc1+ {[%clk 0:00:17]} 31. Kg2 {[%clk 0:01:05]}  Kg7 {[%clk 0:00:18]} 32. Rd8 {[%clk 0:01:02]}  Rc7 {[%clk 0:00:17]} 33. Ba6 {[%clk 0:00:57]}  Kf6 {[%clk 0:00:15]} 34. Rb8 {[%clk 0:00:56]}  Ke7 {[%clk 0:00:05]} 35. Rxb6 {[%clk 0:00:55]}  Nc8 {[%clk 0:00:06]} 36. Bxc8 {[%clk 0:00:55]}  Rxc8 {[%clk 0:00:06]} 37. Ra6 {[%clk 0:00:54]}  Rc4 {[%clk 0:00:05]} 38. Rxa5 {[%clk 0:00:54]}  Kd6 {[%clk 0:00:06]} 39. Ra7 {[%clk 0:00:52]}  f5 {[%clk 0:00:06]} 40. b6 {[%clk 0:00:51]}  Rb4 {[%clk 0:00:06]} 41. a5 {[%clk 0:00:50]} 1-0


[Site "https://www.chess.com"]